[Event "EICC 2025"]
[Site "Eforie-Nord"]
[Date "2025.03.16"]
[Round "2.29"]
[White "Lavrencic, Matic"]
[Black "Gurel, Ediz"]
[Result "1-0"]
[Annotator "TA"]
[ECO "B22"]
[WhiteElo "2446"]
[BlackElo "2620"]
[PlyCount "71"]
[EventDate "2025.03.14"]
[EventType "swiss"]
[EventCountry "ROU"]
[SourceTitle "playchess.com"]
[Source "ChessBase"]
[SourceQuality "1"]
[TimeControl "40/5400+30:1800+30"]

{[%evp 12,71,18,10,8,4,11,12,6,13,39,34,37,39,22,-7,-10,-37,-36,-31,-33,-39,91,95,87,77,116,129,112,63,103,86,144,148,235,156,171,181,249,226,471,475,496,498,475,475,775,610,610,605,743,513,532,525,506,505,640,450,781,793,834,727]} 1. e4 {[%emt 0:00:21]} c5 {[%emt 0:00:13]} 2. Nf3 {[%emt 0:00:10]} e6 {[%emt 0:00:13]} 3. c3 {[%emt 0:00:16]} d5 {[%emt 0:00:34]} 4. exd5 {[%emt 0:01:17]} Qxd5 {[%emt 0:00:07]} 5. d4 {[%emt 0:00:09]} Nf6 {[%emt 0:00:27]} 6. Na3 {[%emt 0:00:14]} Nc6 {[%emt 0:00:45]} 7. Be3 {[%emt 0:00:38] Nb5 is in the air} cxd4 {[%emt 0:02:02] [#] B22: Sicilian: 2 c3.} 8. Nb5 $1 {[%emt 0:00:16]} Qd7 {[%emt 0:00:59] Dodges Nc7+} 9. Nbxd4 {[%emt 0:00:32]} Nd5 {[%emt 0:04:16] The position is equal. 9...Be7 is the hot move.} 10. Bd2 {[%emt 0:01:18]} Bd6 {[%emt 0:04:46]} 11. Nxc6 {[%emt 0:11:09]} bxc6 {[%emt 0:00:41]} 12. c4 {[%emt 0:00:51]} Nf6 {[%emt 0:02:33]} 13. Qc2 $146 {[%emt 0:10:18]} (13. Bd3 $5) (13. Bc3 O-O 14. Qc2 e5 15. O-O-O Qe7 16. Nd2 Bc5 17. Nb3 Bb4 18. Bxb4 Qxb4 19. a3 {½-½ Rezzuti,V (2396)-Raivio,P (2395) ITA-EUR email 2015 [20]}) 13... c5 {[%emt 0:06:47]} 14. O-O-O {[%emt 0:03:59]} Bb7 {[%emt 0:02:01]} 15. Bc3 {[%emt 0:02:28]} Qc7 {[%emt 0:01:01]} 16. Bd3 {[%emt 0:18:42]} Ke7 {[%emt 0:06:47] [#]} (16... Bxf3 $15 {stays ahead.} 17. gxf3 Be5) 17. Qe2 $1 $16 {[%emt 0:08:51]} Rhd8 {[%emt 0:18:45]} 18. Rhe1 {[%emt 0:03:57]} Bxf3 {[%emt 0:01:19]} 19. Qxf3 {[%emt 0:00:34]} (19. gxf3 Bxh2 20. Kb1 Rd7 21. Bxf6+ gxf6 $17 (21... Kxf6 22. Qe4 $11)) 19... Rab8 {[%emt 0:00:48]} 20. Qh3 {[%emt 0:10:28] White is more active.} (20. g3 $16) 20... Rd7 {[%emt 0:06:29]} 21. Kb1 {[%emt 0:05:54]} (21. Bxh7 Rh8 22. g3 Qd8 $16 (22... Nxh7 $2 23. Bxg7 Qb8 24. Qh6 $18)) 21... h5 {[%emt 0:03:08]} (21... h6 $142) 22. Bc2 {[%emt 0:03:34] This pair of bishops is nice.} Qb6 {[%emt 0:04:38]} (22... Bf4 $16 23. Rxd7+ Qxd7) 23. Re2 {[%emt 0:01:11]} Qa6 {[%emt 0:02:12]} 24. Qh4 {[%emt 0:01:29]} Rbd8 {[%emt 0:08:57]} (24... Kd8 25. Red2 (25. Bxf6+ gxf6 26. Qxf6+ Kc7 $18) 25... Ke7) 25. Rde1 {[%emt 0:01:12] Hoping for Qg5.} Bc7 $2 {[%emt 0:04:37] [#]} (25... Rb8 {might work better.} 26. Bb3 Qb7) 26. Qg5 $1 $18 {[%emt 0:01:32][%csl LRc5,LRg7] White is clearly winning.} Kf8 {[%emt 0:01:03]} 27. Bxf6 {[%emt 0:03:05]} (27. Qxc5+ Bd6 28. Qg5 Be7 $16) 27... gxf6 {[%emt 0:00:01]} 28. Qxf6 {[%emt 0:00:21]} Re8 {[%emt 0:01:13]} (28... Rd6 $142 29. Re4 Qa5) 29. Qh6+ {[%emt 0:02:52]} Ke7 {[%emt 0:00:01] [#]} 30. Ba4 $1 {[%emt 0:00:47][%cal Oe2e6] Rxe6+! would kill now.} Red8 {[%emt 0:02:27]} (30... Rd6 31. Bb5) 31. Qg5+ {[%emt 0:01:01]} Kf8 {[%emt 0:00:25]} 32. Bxd7 {[%emt 0:00:14]} Rxd7 {[%emt 0:00:04]} 33. Qxc5+ {[%emt 0:00:14]} Bd6 {[%emt 0:00:05]} 34. Qb5 {[%emt 0:03:08]} Qc8 {[%emt 0:00:04]} (34... Qxb5 $142 35. cxb5 Bxh2) 35. Rd1 {[%emt 0:01:01]} a6 {[%emt 0:00:11]} 36. Qa4 {[%emt 0:00:53] Weighted Error Value: White=0.34/Black=0.74  Mistake:       	White=1     	Black=7      Inaccurate:     	White=3     	Black=3      OK:         	White=7     	Black=8      Best:        	White=1     	Black=1      Strong:       	White=3     	---} 1-0

[Event "EICC 2025"]
[Site "Eforie-Nord"]
[Date "2025.03.16"]
[Round "2.29"]
[White "Turski, Bartlomiej"]
[Black "Velten, Paul"]
[Result "1/2-1/2"]
[Annotator "ChessBase"]
[ECO "C02"]
[WhiteElo "2369"]
[BlackElo "2515"]
[PlyCount "50"]
[EventDate "2025.03.14"]
[EventType "swiss"]
[EventCountry "ROU"]
[SourceTitle "playchess.com"]
[Source "ChessBase"]
[SourceQuality "1"]
[TimeControl "40/5400+30:1800+30"]

1. e4 {[%emt 0:00:04]} e6 {[%emt 0:00:34]} 2. d4 {[%emt 0:00:07]} d5 {[%emt 0:00:26]} 3. e5 {[%emt 0:00:16]} c5 {[%emt 0:01:03]} 4. c3 {[%emt 0:00:09]} Nc6 {[%emt 0:00:31]} 5. Nf3 {[%emt 0:00:14]} Bd7 {[%emt 0:00:36]} 6. Be2 {[%emt 0:00:23]} Nge7 {[%emt 0:03:19]} 7. O-O {[%emt 0:00:15]} cxd4 {[%emt 0:03:18]} 8. cxd4 {[%emt 0:00:07]} Nf5 {[%emt 0:00:20]} 9. Nc3 {[%emt 0:00:10]} Rc8 {[%emt 0:02:39]} 10. Bg5 {[%emt 0:02:39]} Be7 {[%emt 0:03:27]} 11. Bxe7 {[%emt 0:00:53]} Qxe7 {[%emt 0:01:26]} 12. Bd3 {[%emt 0:06:12]} Nh4 {[%emt 0:05:44]} 13. Nxh4 {[%emt 0:01:56]} Qxh4 {[%emt 0:00:15]} 14. Nb5 {[%emt 0:00:13]} O-O {[%emt 0:00:51]} 15. g3 {[%emt 0:00:41]} Qd8 {[%emt 0:00:33]} 16. Nd6 {[%emt 0:05:57]} Rb8 {[%emt 0:01:21]} 17. Bb5 {[%emt 0:05:01]} Ne7 {[%emt 0:02:20]} 18. Bxd7 {[%emt 0:04:27]} Qxd7 {[%emt 0:00:06]} 19. Rc1 {[%emt 0:00:45]} Nc8 {[%emt 0:02:38]} 20. Nxc8 {[%emt 0:00:42]} Rfxc8 {[%emt 0:00:12]} 21. Qd2 {[%emt 0:01:29]} Qa4 {[%emt 0:07:59]} 22. b3 {[%emt 0:04:24]} Qa3 {[%emt 0:01:33]} 23. Rc2 {[%emt 0:00:26]} Rxc2 {[%emt 0:02:22]} 24. Qxc2 {[%emt 0:00:03]} Rf8 {[%emt 0:00:11]} 25. Rc1 {[%emt 0:01:56]} a5 {[%emt 0:12:12]} 1/2-1/2

[Event "EICC 2025"]
[Site "Eforie-Nord"]
[Date "2025.03.16"]
[Round "2.30"]
[White "Lagarde, Maxime"]
[Black "Celik, Hasan Huseyin"]
[Result "1-0"]
[Annotator "TA"]
[ECO "B47"]
[WhiteElo "2615"]
[BlackElo "2441"]
[PlyCount "81"]
[EventDate "2025.03.14"]
[EventType "swiss"]
[EventCountry "ROU"]
[SourceTitle "playchess.com"]
[Source "ChessBase"]
[SourceQuality "1"]
[TimeControl "40/5400+30:1800+30"]

{[%evp 9,81,33,44,10,10,6,10,0,13,0,-8,-7,-3,-13,0,0,7,0,24,0,18,12,27,-68,0,-29,0,-20,-35,-59,-65,-73,-66,-68,0,0,0,-6,0,-23,-22,-31,-5,-15,-16,-33,-14,-41,0,0,98,51,50,50,168,167,151,148,198,195,255,251,278,223,6387,6395,6391,6387,29989,29990,29990,5506,1718,556]} 1. e4 {[%emt 0:00:03]} c5 {[%emt 0:03:19]} 2. Nf3 {[%emt 0:00:05]} e6 {[%emt 0:00:10]} 3. d4 {[%emt 0:00:27]} cxd4 {[%emt 0:00:05]} 4. Nxd4 {[%emt 0:00:03]} Nc6 {[%emt 0:00:06]} 5. Nc3 {[%emt 0:00:24]} Qc7 {[%emt 0:00:04]} 6. g4 {[%emt 0:00:57] B47: Sicilian: Taimanov: 5 Nc3 Qc7 6 f4, 6 g3 and 6 Be2.} a6 {[%emt 0:02:38]} 7. Be3 {[%emt 0:00:12]} b5 {[%emt 0:01:09][%cal Bb7b5,Bb5b4][%mdl 32] 7...h6 is more advanced technology.} 8. Nxc6 {[%emt 0:01:01] The position is equal.} Qxc6 {[%emt 0:00:02]} 9. Qd2 {[%emt 0:00:26]} b4 {[%emt 0:01:29]} 10. Ne2 {[%emt 0:00:09]} Qxe4 {[%emt 0:00:09]} 11. Rg1 {[%emt 0:00:07] Hoping for Bg2. White sacrificed a pawn} Qc4 {[%emt 0:00:20]} 12. Ng3 {[%emt 0:00:12]} (12. Nf4 $5 Qc7 $8 13. O-O-O $11) 12... Qc7 {[%emt 0:00:43]} (12... Qxg4 13. h3 Qg6 14. O-O-O $15) 13. O-O-O {[%emt 0:02:14]} Bb7 {[%emt 0:09:45]} 14. Bf4 {[%emt 0:08:16][%mdl 1024] White has compensation.} Qc6 {[%emt 0:04:13]} 15. Bg2 {[%emt 0:03:16]} d5 {[%emt 0:00:35]} 16. Ne2 $146 {[%emt 0:05:41]} (16. Rge1 $11) (16. Kb1 Nf6 17. g5 Nd7 18. Rge1 Nb6 19. Rc1 Nc4 20. Qd4 Qc5 21. Qd3 g6 22. Rcd1 {0-1 Ermitsch,M (2272)-Topuz,M (1866) EU-ch U14 30th 2022 (3)}) 16... Ne7 {[%emt 0:13:14]} (16... Qb6 $15) 17. Bg3 {[%emt 0:11:45][%cal Og1e1]} Qc4 {[%emt 0:12:48][%cal Oe7c6]} 18. b3 {[%emt 0:15:22]} Qc5 {[%emt 0:01:15]} 19. f4 {[%emt 0:05:09][%cal Of4f5]} g6 {[%emt 0:04:09]} 20. Rgf1 {[%emt 0:10:18][%cal Of4f5]} Bg7 {[%emt 0:01:21]} 21. Bf2 {[%emt 0:02:22]} Qa5 {[%emt 0:04:41]} (21... Qd6 $15) 22. Bd4 $11 {[%emt 0:03:12]} Bxd4 {[%emt 0:00:17]} 23. Nxd4 {[%emt 0:00:12][%cal Be2d4,Bd4f5,Bf5e7][%mdl 32]} O-O-O {[%emt 0:09:08][%cal Oh7h5]} 24. Kb1 {[%emt 0:03:58]} h5 {[%emt 0:01:28]} (24... Qc5 {simplifies} 25. Rc1 Kb8 26. c3 bxc3 27. Rxc3 Qd6) 25. f5 {[%emt 0:04:25]} gxf5 {[%emt 0:01:33]} 26. gxf5 {[%emt 0:00:04][%cal Bg4f5,Bf5f6][%mdl 32]} e5 {[%emt 0:00:25]} 27. f6 $1 {[%emt 0:01:21]} Ng6 {[%emt 0:00:46]} 28. Nf5 {[%emt 0:00:45]} Qc5 {[%emt 0:01:39]} 29. Qg5 $1 $36 {[%emt 0:00:46][%mdl 2048] White fights for an advantage.} Rde8 {[%emt 0:07:40] Repels Ne7+} (29... Rd7 $11 {keeps the balance.}) 30. Rfe1 {[%emt 0:09:02] White is much more active.} (30. Nh6 $16 Qf8 31. Nf5) 30... Kb8 $14 {[%emt 0:01:57]} 31. Ne7 $1 {[%emt 0:00:38]} Nf4 {[%emt 0:11:40]} ({Black should try} 31... Rc8 $14) 32. Rxe5 {[%emt 0:04:13]} Nxg2 {[%emt 0:00:54]} 33. Qxg2 {[%emt 0:00:08]} Qd6 {[%emt 0:00:47] [#]} (33... Rd8 $16 34. Qg7 (34. Nxd5 Rhg8 $14) 34... Qf2) 34. Rf5 $1 $18 {[%emt 0:02:35]} h4 {[%emt 0:00:24]} (34... Rd8 {was worth a try.} 35. Rd4 (35. Nxd5 Rhe8 $16) (35. Qg7 d4 $16) 35... h4) 35. Qf2 {[%emt 0:00:36]} ({Weaker is} 35. Nxd5 Rhg8 36. Qd2 Re4 $14) 35... h3 {[%emt 0:01:04]} 36. Rd3 {[%emt 0:01:16]} ({Much less strong is} 36. Nxd5 $6 Rhg8 $16) 36... a5 $2 {[%emt 0:03:19]} (36... Qe6 37. Rd2 (37. Nxd5 Qe1+ 38. Kb2 Qxf2 $16) (37. Qf4+ Ka8 $18) 37... a5) 37. Rdxd5 {[%emt 0:01:59]} Bxd5 {[%emt 0:01:15]} 38. Rxd5 {[%emt 0:00:04] White threatens Rb5+ and mate.} Qc7 {[%emt 0:01:09]} 39. Rb5+ {[%emt 0:01:20]} Ka8 {[%emt 0:00:01]} 40. Qf3+ {[%emt 0:02:14]} (40. Nd5 $142 Qc6 41. Rxa5+ Kb8 42. Qa7+ (42. Nxb4 Qd6 $18) 42... Kc8 43. Nb6+ (43. Nxb4 Re1+ 44. Kb2 Qxf6+ 45. Ka3 Qd6 $18) 43... Qxb6 44. Qxb6 Re1+ 45. Kb2 Re6 46. Ra8+ (46. Qxb4 Kc7 47. Qc4+ Rc6 48. Qxf7+ Kb8 49. Rb5+ Rb6 50. Rxb6+ Kc8 51. Qa7 Rh6 52. Rb8#) 46... Kd7 47. Ra7+ Ke8 48. Qb8#) 40... Ka7 {[%emt 0:00:02] [#]} 41. Rxa5+ {[%emt 0:31:15] Weighted Error Value: White=0.22 (precise) /Black=0.55  Mistake:       	White=2     	Black=7      Inaccurate:     	White=1     	Black=2      OK:         	White=10    	Black=14     Best:        	White=3     	---        Strong:       	White=4     	---} 1-0

[Event "EICC 2025"]
[Site "Eforie-Nord"]
[Date "2025.03.16"]
[Round "2.30"]
[White "Kosakowski, Jakub"]
[Black "Vagman, Roy"]
[Result "1-0"]
[Annotator "ChessBase"]
[ECO "B67"]
[WhiteElo "2515"]
[BlackElo "2300"]
[PlyCount "69"]
[EventDate "2025.03.14"]
[EventType "swiss"]
[EventCountry "ROU"]
[SourceTitle "playchess.com"]
[Source "ChessBase"]
[SourceQuality "1"]
[TimeControl "40/5400+30:1800+30"]

1. e4 {[%emt 0:00:06]} c5 {[%emt 0:00:07]} 2. Nf3 {[%emt 0:00:24]} d6 {[%emt 0:00:07]} 3. d4 {[%emt 0:00:22]} cxd4 {[%emt 0:00:08]} 4. Nxd4 {[%emt 0:00:04]} Nf6 {[%emt 0:00:09]} 5. Nc3 {[%emt 0:00:13]} Nc6 {[%emt 0:00:08]} 6. Bg5 {[%emt 0:00:31]} e6 {[%emt 0:00:09]} 7. Qd2 {[%emt 0:00:36]} a6 {[%emt 0:00:41]} 8. O-O-O {[%emt 0:01:22]} Bd7 {[%emt 0:00:16]} 9. f3 {[%emt 0:01:33]} Nxd4 {[%emt 0:03:45]} 10. Qxd4 {[%emt 0:00:08]} h6 {[%emt 0:02:27]} 11. Be3 {[%emt 0:07:30]} Bc6 {[%emt 0:01:06]} 12. Qd2 {[%emt 0:04:54]} Qc7 {[%emt 0:12:53]} 13. Kb1 {[%emt 0:05:38]} b5 {[%emt 0:05:27]} 14. Bd3 {[%emt 0:05:32]} Be7 {[%emt 0:10:11]} 15. h4 {[%emt 0:10:00]} b4 {[%emt 0:11:13]} 16. Ne2 {[%emt 0:00:29]} d5 {[%emt 0:12:14]} 17. e5 {[%emt 0:02:10]} Nd7 {[%emt 0:00:14]} 18. f4 {[%emt 0:08:13]} h5 {[%emt 0:01:51]} 19. Nd4 {[%emt 0:07:06]} g6 {[%emt 0:03:11]} 20. c3 {[%emt 0:07:58]} Nb6 {[%emt 0:16:26]} 21. b3 {[%emt 0:07:54]} Rb8 {[%emt 0:03:37]} 22. Ka1 {[%emt 0:04:21]} Bd7 {[%emt 0:07:22]} 23. cxb4 {[%emt 0:02:13]} Na8 {[%emt 0:02:12]} 24. b5 {[%emt 0:09:18]} axb5 {[%emt 0:01:25]} 25. Rc1 {[%emt 0:00:19]} Qb7 {[%emt 0:00:29]} 26. f5 {[%emt 0:04:39]} gxf5 {[%emt 0:00:32]} 27. Bg5 {[%emt 0:00:21]} Qb6 {[%emt 0:01:15]} 28. Nf3 {[%emt 0:05:43]} Bxg5 {[%emt 0:01:07]} 29. hxg5 {[%emt 0:00:29]} Nc7 {[%emt 0:00:32]} 30. g6 {[%emt 0:00:29]} b4 {[%emt 0:02:44]} 31. Qg5 {[%emt 0:01:33]} Nb5 {[%emt 0:01:17]} 32. Rxh5 {[%emt 0:02:40]} Rxh5 {[%emt 0:00:34]} 33. gxf7+ {[%emt 0:00:10]} Kf8 {[%emt 0:00:30]} 34. Qg8+ {[%emt 0:00:38]} Ke7 {[%emt 0:00:01]} 35. Qg7 {[%emt 0:00:08]} 1-0

[Event "EICC 2025"]
[Site "Eforie-Nord"]
[Date "2025.03.16"]
[Round "2.31"]
[White "Abasov, Nijat"]
[Black "Magold, Filip"]
[Result "1/2-1/2"]
[Annotator "TA"]
[ECO "E12"]
[WhiteElo "2612"]
[BlackElo "2435"]
[PlyCount "74"]
[EventDate "2025.03.14"]
[EventType "swiss"]
[EventCountry "ROU"]
[SourceTitle "playchess.com"]
[Source "ChessBase"]
[SourceQuality "1"]
[TimeControl "40/5400+30:1800+30"]

{[%evp 25,74,14,29,22,22,10,26,-6,17,0,0,0,19,0,0,0,0,0,12,0,0,0,14,0,0,0,13,0,7,0,13,13,14,11,27,0,0,-24,25,-18,-11,-30,-3,-3,-4,-6,0,0,0,0,0]} 1. d4 {[%emt 0:01:57]} Nf6 {[%emt 0:00:21]} 2. Nf3 {[%emt 0:00:32]} e6 {[%emt 0:00:12]} 3. c4 {[%emt 0:01:19]} b6 {[%emt 0:00:12]} 4. a3 {[%emt 0:00:04]} Bb7 {[%emt 0:00:06]} 5. Nc3 {[%emt 0:00:06]} d5 {[%emt 0:00:03]} 6. cxd5 {[%emt 0:00:40]} Nxd5 {[%emt 0:00:07]} 7. e3 {[%emt 0:00:04]} Nxc3 {[%emt 0:03:22]} 8. bxc3 {[%emt 0:00:34]} Be7 {[%emt 0:00:09]} 9. Bb5+ {[%emt 0:00:43]} c6 {[%emt 0:00:08]} 10. Bd3 {[%emt 0:00:08]} O-O {[%emt 0:05:21]} 11. O-O {[%emt 0:01:13]} c5 {[%emt 0:03:42]} 12. Qe2 {[%emt 0:01:29]} Nd7 {[%emt 0:05:43]} 13. e4 {[%emt 0:03:37]} Qc7 {[%emt 0:11:07]} 14. Rd1 {[%emt 0:00:58] E12: Queen's Indian: Unusual White 4th moves, 4 a3, 4 Nc3 Bb7 5 a3 and 4 Nc3 Bb7 .} Rac8 {[%emt 0:01:38]} 15. a4 {[%emt 0:00:36]} Rfd8 {[%emt 0:04:09]} 16. Bb2 {[%emt 0:01:57] White has an edge.} Nf6 {[%emt 0:02:37]} 17. Ne5 {[%emt 0:05:34]} Bd6 $146 {[%emt 0:17:56]} (17... cxd4 18. cxd4 Bb4 19. Ng4 Nxg4 20. Qxg4 Qe7 21. e5 h6 22. Bc1 f5 23. exf6 Qxf6 24. Be3 Kh8 25. Rac1 Bd6 26. Be4 Rxc1 27. Rxc1 {½-½ Quintiliano Pinto,R (2340)-Aranha Filho,A (2236) Batatais op 3rd 2013 (4)}) 18. Nf3 {[%emt 0:06:55] [#] and e5 would now be decisive} Be7 {[%emt 0:00:07]} 19. h3 {[%emt 0:01:32]} cxd4 {[%emt 0:04:18]} 20. cxd4 {[%emt 0:00:32]} Bb4 {[%emt 0:14:58]} 21. Ne5 {[%emt 0:08:22]} Qe7 {[%emt 0:00:29]} 22. Rdc1 {[%emt 0:00:28]} Nd7 {[%emt 0:02:14]} 23. Ng4 {[%emt 0:02:04]} Nf8 {[%emt 0:02:31]} 24. Ne5 {[%emt 0:10:53]} Nd7 {[%emt 0:01:59]} 25. Nf3 {[%emt 0:08:06]} Nf6 {[%emt 0:01:54][%cal Bd7f6,Bf6h7,Bh7f8,Bf8g6][%mdl 32]} 26. Qe3 {[%emt 0:01:15]} Rxc1+ {[%emt 0:02:30]} 27. Rxc1 {[%emt 0:01:21]} Rc8 {[%emt 0:01:23]} 28. Rxc8+ {[%emt 0:01:26]} Bxc8 {[%emt 0:00:02]} 29. Qf4 {[%emt 0:00:14]} h6 {[%emt 0:06:13]} 30. g4 {[%emt 0:00:35]} Nh7 {[%emt 0:04:32]} 31. h4 {[%emt 0:00:51]} (31. d5 $5) 31... Ba3 {[%emt 0:01:09]} (31... Nf8 {feels stronger.}) 32. Bc3 {[%emt 0:00:51]} Nf8 {[%emt 0:00:39]} 33. g5 {[%emt 0:04:37]} h5 {[%emt 0:01:15]} 34. d5 {[%emt 0:05:35] The position is equal.} Ng6 {[%emt 0:01:02] Inhibits Qe5.} 35. Qb8 {[%emt 0:00:06]} Qb7 {[%emt 0:00:04]} 36. Qxb7 {[%emt 0:00:16]} Bxb7 {[%emt 0:00:01]} 37. dxe6 {[%emt 0:00:07]} fxe6 {[%emt 0:00:05] An even fight not without its subleties.   Weighted Error Value: White=0.11 (very precise) /Black=0.06 (flawless)   Mistake:       	---       	Black=1      Inaccurate:     	White=3     	Black=1      OK:         	White=7     	Black=14     Best:        	White=1     	---} 1/2-1/2

[Event "EICC 2025"]
[Site "Eforie-Nord"]
[Date "2025.03.16"]
[Round "2.31"]
[White "Yordanov, Lachezar"]
[Black "Heberla, Bartlomiej"]
[Result "1/2-1/2"]
[Annotator "ChessBase"]
[ECO "E91"]
[WhiteElo "2361"]
[BlackElo "2512"]
[PlyCount "94"]
[EventDate "2025.03.14"]
[EventType "swiss"]
[EventCountry "ROU"]
[SourceTitle "playchess.com"]
[Source "ChessBase"]
[SourceQuality "1"]
[TimeControl "40/5400+30:1800+30"]

1. d4 {[%emt 0:00:04]} Nf6 {[%emt 0:00:05]} 2. c4 {[%emt 0:00:05]} c5 {[%emt 0:00:04]} 3. d5 {[%emt 0:00:06]} g6 {[%emt 0:00:04]} 4. Nc3 {[%emt 0:00:18]} Bg7 {[%emt 0:00:06]} 5. e4 {[%emt 0:00:27]} d6 {[%emt 0:00:06]} 6. Be2 {[%emt 0:00:20]} e6 {[%emt 0:00:21]} 7. Nf3 {[%emt 0:08:08]} O-O {[%emt 0:00:40]} 8. Be3 {[%emt 0:02:45]} exd5 {[%emt 0:00:15]} 9. cxd5 {[%emt 0:00:07]} Nbd7 {[%emt 0:00:06]} 10. O-O {[%emt 0:00:48]} Ng4 {[%emt 0:00:07]} 11. Bf4 {[%emt 0:02:32]} Nde5 {[%emt 0:00:14]} 12. Nd2 {[%emt 0:08:21]} f5 {[%emt 0:00:22]} 13. exf5 {[%emt 0:02:03]} Bxf5 {[%emt 0:03:05]} 14. h3 {[%emt 0:23:25]} Bd7 {[%emt 0:14:09]} 15. Bg3 {[%emt 0:07:05]} Nh6 {[%emt 0:00:14]} 16. f4 {[%emt 0:02:47]} Nef7 {[%emt 0:03:13]} 17. Nf3 {[%emt 0:02:01]} b5 {[%emt 0:25:49]} 18. Qd2 {[%emt 0:11:50]} Qa5 {[%emt 0:02:06]} 19. Bf2 {[%emt 0:09:59]} Rae8 {[%emt 0:00:39]} 20. a3 {[%emt 0:00:33]} Nf5 {[%emt 0:04:18]} 21. g4 {[%emt 0:00:39]} Ne7 {[%emt 0:00:07]} 22. Rfe1 {[%emt 0:02:36]} Nc8 {[%emt 0:04:59]} 23. Bf1 {[%emt 0:04:08]} a6 {[%emt 0:06:49]} 24. Rad1 {[%emt 0:02:59]} Nb6 {[%emt 0:07:01]} 25. Ne4 {[%emt 0:00:27]} Qxd2 {[%emt 0:03:08]} 26. Rxd2 {[%emt 0:00:05]} Na4 {[%emt 0:04:16]} 27. b4 {[%emt 0:02:41]} Nc3 {[%emt 0:07:11]} 28. Ng3 {[%emt 0:04:09]} Rxe1 {[%emt 0:01:29]} 29. Nxe1 {[%emt 0:00:30]} Re8 {[%emt 0:01:31]} 30. Nc2 {[%emt 0:01:15]} h5 {[%emt 0:04:54]} 31. gxh5 {[%emt 0:01:28]} g5 {[%emt 0:00:02]} 32. h6 {[%emt 0:00:56]} Bxh6 {[%emt 0:04:16]} 33. bxc5 {[%emt 0:00:24]} dxc5 {[%emt 0:01:47]} 34. Bxc5 {[%emt 0:00:40]} Ne4 {[%emt 0:02:40]} 35. Nxe4 {[%emt 0:00:15]} Rxe4 {[%emt 0:00:01]} 36. Rd4 {[%emt 0:00:57]} Re8 {[%emt 0:00:38]} 37. fxg5 {[%emt 0:00:31]} Nxg5 {[%emt 0:00:11]} 38. Bg2 {[%emt 0:00:34]} Rc8 {[%emt 0:00:13]} 39. Rh4 {[%emt 0:00:00]} Rxc5 {[%emt 0:01:42]} 40. Rxh6 {[%emt 0:00:20]} Rxc2 {[%emt 0:00:29]} 41. Rg6+ {[%emt 0:30:07]} Kf7 {[%emt 0:30:12]} 42. Rxg5 {[%emt 0:00:07]} Rc3 {[%emt 0:00:00]} 43. h4 {[%emt 0:00:00]} Kf6 {[%emt 0:00:00]} 44. Rg8 {[%emt 0:00:00]} Rxa3 {[%emt 0:00:00]} 45. h5 {[%emt 0:00:00]} Ra4 {[%emt 0:00:00]} 46. h6 {[%emt 0:00:00]} Rh4 {[%emt 0:00:00]} 47. Ra8 {[%emt 0:00:00]} Rxh6 {[%emt 0:00:00]} 1/2-1/2